[Event "Snabbschacks-SM 2025"]
[Site "Norrköping, Sweden"]
[Date "2025.09.28"]
[Round "9.1"]
[White "Carlsson, Ludvig"]
[Black "Muntean, Victor"]
[Result "1/2-1/2"]
[TimeControl "25 min + 10 sec/move"]
[WhiteTitle "IM"]
[WhiteElo "2389"]
[BlackElo "2151"]

1. Nf3 {[%clk 00:24:58]} {[%emt 00:00:20]} Nf6 {[%clk 00:24:40]} {[%emt
00:00:42]} 2. c4 {[%clk 00:24:19]} {[%emt 00:00:48]} g6 {[%clk 00:24:43]}
{[%emt 00:00:08]} 3. Nc3 {[%clk 00:23:45]} {[%emt 00:00:43]} Bg7 {[%clk
00:24:49]} {[%emt 00:00:04]} 4. d4 {[%clk 00:23:27]} {[%emt 00:00:28]} O-O
{[%clk 00:24:45]} {[%emt 00:00:14]} 5. Bg5 {[%clk 00:23:32]} {[%emt 00:00:04]}
h6 {[%clk 00:23:50]} {[%emt 00:01:06]} 6. Bh4 {[%clk 00:23:38]} {[%emt
00:00:03]} d6 {[%clk 00:20:49]} {[%emt 00:03:11]} 7. e3 {[%clk 00:23:44]}
{[%emt 00:00:03]} Nbd7 {[%clk 00:19:35]} {[%emt 00:01:26]} 8. Be2 {[%clk
00:23:32]} {[%emt 00:00:20]} c6 {[%clk 00:19:22]} {[%emt 00:00:25]} 9. Qc2
{[%clk 00:23:36]} {[%emt 00:00:05]} Qc7 {[%clk 00:18:52]} {[%emt 00:00:40]} 10.
O-O {[%clk 00:23:39]} {[%emt 00:00:06]} e5 {[%clk 00:18:23]} {[%emt 00:00:40]}
11. Rfd1 {[%clk 00:23:10]} {[%emt 00:00:39]} Re8 {[%clk 00:17:58]} {[%emt
00:00:36]} 12. dxe5 {[%clk 00:22:28]} {[%emt 00:00:52]} dxe5 {[%clk 00:17:22]}
{[%emt 00:00:45]} 13. Nd2 {[%clk 00:22:29]} {[%emt 00:00:08]} Nf8 {[%clk
00:15:16]} {[%emt 00:02:18]} 14. Rac1 {[%clk 00:19:21]} {[%emt 00:03:17]} Bf5
{[%clk 00:14:34]} {[%emt 00:00:53]} 15. Bd3 {[%clk 00:19:27]} {[%emt 00:00:03]}
Bxd3 {[%clk 00:14:11]} {[%emt 00:00:33]} 16. Qxd3 {[%clk 00:19:35]} {[%emt
00:00:02]} Rad8 {[%clk 00:14:19]} {[%emt 00:00:03]} 17. Qc2 {[%clk 00:19:39]}
{[%emt 00:00:05]} Rd7 {[%clk 00:13:21]} {[%emt 00:01:09]} 18. h3 {[%clk
00:15:55]} {[%emt 00:03:53]} g5 {[%clk 00:12:25]} {[%emt 00:01:07]} 19. Bg3
{[%clk 00:16:02]} {[%emt 00:00:02]} Ng6 {[%clk 00:12:31]} {[%emt 00:00:04]} 20.
Bh2 {[%clk 00:14:00]} {[%emt 00:02:11]} Red8 {[%clk 00:11:52]} {[%emt
00:00:50]} 21. Nf1 {[%clk 00:13:14]} {[%emt 00:00:56]} Rxd1 {[%clk 00:10:40]}
{[%emt 00:01:23]} 22. Rxd1 {[%clk 00:13:21]} {[%emt 00:00:02]} Rxd1 {[%clk
00:10:47]} {[%emt 00:00:03]} 23. Qxd1 {[%clk 00:13:28]} {[%emt 00:00:02]} Qd7
{[%clk 00:10:49]} {[%emt 00:00:09]} 24. b3 {[%clk 00:11:16]} {[%emt 00:02:23]}
Qxd1 {[%clk 00:09:27]} {[%emt 00:01:32]} 25. Nxd1 {[%clk 00:11:24]} {[%emt
00:00:01]} Ne4 {[%clk 00:08:56]} {[%emt 00:00:42]} 26. f3 {[%clk 00:10:07]}
{[%emt 00:01:27]} Nc5 {[%clk 00:08:49]} {[%emt 00:00:17]} 27. Nf2 {[%clk
00:10:14]} {[%emt 00:00:02]} f5 {[%clk 00:08:20]} {[%emt 00:00:40]} 28. Nd2
{[%clk 00:08:39]} {[%emt 00:01:44]} f4 {[%clk 00:07:35]} {[%emt 00:00:56]} 29.
e4 {[%clk 00:08:47]} Bf8 {[%clk 00:07:21]} {[%emt 00:00:24]} 30. Kf1 {[%clk
00:08:55]} {[%emt 00:00:02]} Ne6 {[%clk 00:07:03]} {[%emt 00:00:28]} 31. Nd3
{[%clk 00:08:25]} {[%emt 00:00:39]} c5 {[%clk 00:06:24]} {[%emt 00:00:50]} 32.
Bg1 {[%clk 00:08:31]} {[%emt 00:00:03]} b6 {[%clk 00:06:27]} {[%emt 00:00:09]}
33. Bf2 {[%clk 00:08:38]} {[%emt 00:00:02]} Bd6 {[%clk 00:05:37]} {[%emt
00:01:00]} 34. Nb1 {[%clk 00:08:46]} {[%emt 00:00:02]} Kf7 {[%clk 00:04:37]}
{[%emt 00:01:11]} 35. Nc3 {[%clk 00:08:54]} {[%emt 00:00:02]} Ne7 {[%clk
00:03:53]} {[%emt 00:00:54]} 36. Nb5 {[%clk 00:07:32]} {[%emt 00:01:32]} Bb8
{[%clk 00:04:01]} {[%emt 00:00:02]} 37. Ke2 {[%clk 00:07:39]} {[%emt 00:00:02]}
Nc6 {[%clk 00:03:58]} {[%emt 00:00:13]} 38. Kd2 {[%clk 00:07:47]} {[%emt
00:00:02]} h5 {[%clk 00:02:30]} {[%emt 00:01:38]} 39. Nc3 {[%clk 00:07:35]}
{[%emt 00:00:23]} h4 {[%clk 00:02:14]} {[%emt 00:00:25]} 40. Nd5 {[%clk
00:07:26]} {[%emt 00:00:20]} Bd6 {[%clk 00:01:50]} {[%emt 00:00:34]} 41. Kc3
{[%clk 00:07:33]} {[%emt 00:00:02]} Ned4 {[%clk 00:01:18]} {[%emt 00:00:43]} 42.
Bxd4 {[%clk 00:07:33]} {[%emt 00:00:10]} exd4+ {[%clk 00:01:00]} {[%emt
00:00:28]} 43. Kc2 {[%clk 00:07:37]} {[%emt 00:00:05]} Ke6 {[%clk 00:00:39]}
{[%emt 00:00:32]} 44. Nf2 {[%clk 00:07:32]} {[%emt 00:00:15]} Ne5 {[%clk
00:00:29]} {[%emt 00:00:20]} 45. Kd2 {[%clk 00:07:37]} {[%emt 00:00:05]} Kf7
{[%clk 00:00:20]} {[%emt 00:00:18]} 46. Ke2 {[%clk 00:07:34]} {[%emt 00:00:14]}
Ke6 {[%clk 00:00:29]} {[%emt 00:00:01]} 47. Nd1 {[%clk 00:07:42]} Be7 {[%clk
00:00:21]} {[%emt 00:00:19]} 48. Nc7+ {[%clk 00:07:43]} {[%emt 00:00:08]} Kd7
{[%clk 00:00:26]} {[%emt 00:00:05]} 49. Nb5 {[%clk 00:07:48]} {[%emt 00:00:05]}
a6 {[%clk 00:00:29]} {[%emt 00:00:08]} 50. Na3 {[%clk 00:07:57]} Kc6 {[%clk
00:00:35]} {[%emt 00:00:03]} 51. Nb2 {[%clk 00:07:57]} {[%emt 00:00:10]} b5
{[%clk 00:00:37]} {[%emt 00:00:08]} 52. Nc2 {[%clk 00:07:28]} {[%emt 00:00:38]}
b4 {[%clk 00:00:37]} {[%emt 00:00:10]} 53. Ne1 {[%clk 00:06:51]} {[%emt
00:00:47]} a5 {[%clk 00:00:40]} {[%emt 00:00:07]} 54. Kd2 {[%clk 00:06:57]}
{[%emt 00:00:04]} Kd6 {[%clk 00:00:45]} {[%emt 00:00:05]} 55. Kc2 {[%clk
00:06:55]} {[%emt 00:00:12]} Ke6 {[%clk 00:00:49]} {[%emt 00:00:07]} 56. Nd1
{[%clk 00:07:03]} {[%emt 00:00:02]} Kd6 {[%clk 00:00:53]} {[%emt 00:00:06]} 57.
Nf2 {[%clk 00:07:10]} {[%emt 00:00:03]} Ke6 {[%clk 00:01:00]} {[%emt 00:00:02]}
58. Ng4 {[%clk 00:07:10]} {[%emt 00:00:10]} Nxg4 {[%clk 00:00:37]} {[%emt
00:00:33]} 59. fxg4 {[%clk 00:07:13]} {[%emt 00:00:07]} Bf6 {[%clk 00:00:33]}
{[%emt 00:00:14]} 60. Nf3 {[%clk 00:07:21]} {[%emt 00:00:02]} Be7 {[%clk
00:00:29]} {[%emt 00:00:14]} 61. Kd3 {[%clk 00:06:49]} {[%emt 00:00:42]} Bf6
{[%clk 00:00:37]} 62. e5 {[%clk 00:04:53]} {[%emt 00:02:06]} Be7 {[%clk
00:00:46]} 63. Ke4 {[%clk 00:05:02]} {[%emt 00:00:02]} Bd8 {[%clk 00:00:53]}
{[%emt 00:00:03]} 64. Ne1 {[%clk 00:05:11]} Be7 {[%clk 00:01:00]} {[%emt
00:00:03]} 65. Nd3 {[%clk 00:05:20]} Bf8 {[%clk 00:01:08]} {[%emt 00:00:03]} 66.
Nb2 {[%clk 00:05:29]} Be7 {[%clk 00:00:45]} {[%emt 00:00:32]} 67. Na4 {[%clk
00:05:34]} {[%emt 00:00:05]} Bf8 {[%clk 00:00:53]} {[%emt 00:00:02]} 68. Nb6
{[%clk 00:05:42]} {[%emt 00:00:02]} Bg7 {[%clk 00:00:41]} {[%emt 00:00:22]} 69.
Na4 {[%clk 00:05:22]} {[%emt 00:00:30]} Bf8 {[%clk 00:00:50]} {[%emt 00:00:01]}
70. Nb2 {[%clk 00:05:30]} {[%emt 00:00:01]} Be7 {[%clk 00:00:58]} {[%emt
00:00:02]} 71. Nd3 {[%clk 00:05:36]} {[%emt 00:00:04]} Bf8 {[%clk 00:01:07]}
{[%emt 00:00:02]} 72. Kf3 {[%clk 00:05:43]} {[%emt 00:00:03]} Be7 {[%clk
00:01:08]} {[%emt 00:00:09]} 73. Kf2 {[%clk 00:05:51]} {[%emt 00:00:01]} Bf8
{[%clk 00:00:33]} {[%emt 00:00:46]} 74. Ke2 {[%clk 00:05:52]} {[%emt 00:00:08]}
Be7 {[%clk 00:00:42]} {[%emt 00:00:01]} 75. Kd1 {[%clk 00:06:01]} Bf8 {[%clk
00:00:46]} {[%emt 00:00:07]} 76. a3 {[%clk 00:06:10]} Be7 {[%clk 00:00:50]}
{[%emt 00:00:05]} 77. Kd2 {[%clk 00:06:08]} {[%emt 00:00:12]} Bf8 {[%clk
00:00:57]} {[%emt 00:00:03]} 78. axb4 {[%clk 00:06:17]} {[%emt 00:00:02]} axb4
{[%clk 00:01:05]} {[%emt 00:00:02]} 79. Ke2 {[%clk 00:06:23]} {[%emt 00:00:04]}
Be7 {[%clk 00:01:12]} {[%emt 00:00:03]} 80. Kf3 {[%clk 00:06:31]} {[%emt
00:00:02]} Bf8 {[%clk 00:01:20]} {[%emt 00:00:02]} 81. Ke4 {[%clk 00:06:39]}
Be7 {[%clk 00:01:28]} {[%emt 00:00:02]} 82. Ne1 {[%clk 00:06:37]} {[%emt
00:00:13]} Bd8 {[%clk 00:01:30]} {[%emt 00:00:09]} 83. Nf3 {[%clk 00:06:44]}
{[%emt 00:00:02]} Be7 {[%clk 00:01:38]} {[%emt 00:00:02]} 84. Kd3 {[%clk
00:06:53]} {[%emt 00:00:01]} Bd8 {[%clk 00:01:45]} {[%emt 00:00:04]} 85. Nd2
{[%clk 00:07:01]} {[%emt 00:00:02]} Kxe5 {[%clk 00:01:27]} {[%emt 00:00:28]} 86.
Nf3+ {[%clk 00:07:06]} {[%emt 00:00:04]} Kf6 {[%clk 00:01:20]} {[%emt
00:00:17]} 87. Ke4 {[%clk 00:07:14]} {[%emt 00:00:03]} Ke6 {[%clk 00:01:18]}
{[%emt 00:00:12]} 88. Ne1 {[%clk 00:07:08]} {[%emt 00:00:15]} Be7 {[%clk
00:01:23]} {[%emt 00:00:06]} 89. Nd3 {[%clk 00:07:16]} {[%emt 00:00:02]} Bd6
{[%clk 00:01:26]} {[%emt 00:00:07]} 90. Kf3 {[%clk 00:07:23]} {[%emt 00:00:04]}
Kf7 {[%clk 00:01:25]} {[%emt 00:00:11]} 91. Kf2 {[%clk 00:07:31]} {[%emt
00:00:02]} Kf6 {[%clk 00:01:33]} {[%emt 00:00:02]} 92. Ke2 {[%clk 00:07:37]}
{[%emt 00:00:03]} Ke6 {[%clk 00:01:39]} {[%emt 00:00:05]} 93. Kf3 {[%clk
00:07:44]} {[%emt 00:00:02]} Be7 {[%clk 00:01:43]} {[%emt 00:00:06]} 94. Ke4
{[%clk 00:07:53]} Bd6 {[%clk 00:01:51]} {[%emt 00:00:02]} 95. Ne1 {[%clk
00:08:02]} {[%emt 00:00:01]} Be7 {[%clk 00:01:57]} {[%emt 00:00:04]} 96. Nf3
{[%clk 00:08:10]} {[%emt 00:00:02]} Bf6 {[%clk 00:02:06]} {[%emt 00:00:02]} 97.
Ne1 {[%clk 00:07:19]} {[%emt 00:01:00]} Be7 {[%clk 00:02:14]} {[%emt 00:00:02]}
98. Nd3 {[%clk 00:07:27]} {[%emt 00:00:02]} Bd6 {[%clk 00:02:23]} {[%emt
00:00:02]} 99. Kf3 {[%clk 00:07:30]} {[%emt 00:00:05]} Kf7 {[%clk 00:02:31]}
{[%emt 00:00:02]} 100. Ke2 {[%clk 00:07:36]} {[%emt 00:00:04]} Ke6 {[%clk
00:02:40]} {[%emt 00:00:02]} 101. g3 {[%clk 00:07:31]} {[%emt 00:00:15]} fxg3
{[%clk 00:02:37]} {[%emt 00:00:12]} 102. Kf1 {[%clk 00:07:37]} {[%emt
00:00:04]} Be7 {[%clk 00:02:41]} {[%emt 00:00:06]} 103. Kg2 {[%clk 00:07:36]}
{[%emt 00:00:11]} Bd6 {[%clk 00:02:47]} {[%emt 00:00:04]} 104. Kf3 {[%clk
00:07:44]} {[%emt 00:00:02]} Be7 {[%clk 00:02:55]} {[%emt 00:00:02]} 105. Ne1
{[%clk 00:07:51]} {[%emt 00:00:03]} Ke5 {[%clk 00:02:54]} {[%emt 00:00:12]} 106.
Nd3+ {[%clk 00:07:19]} {[%emt 00:00:41]} Ke6 {[%clk 00:03:03]} {[%emt
00:00:02]} 107. Ke2 {[%clk 00:07:27]} {[%emt 00:00:01]} Bd6 {[%clk 00:03:10]}
{[%emt 00:00:04]} 108. Kf1 {[%clk 00:07:34]} {[%emt 00:00:02]} Be7 {[%clk
00:03:18]} {[%emt 00:00:03]} 109. Kg2 {[%clk 00:07:43]} {[%emt 00:00:02]}
1/2-1/2

[Event "Snabbschacks-SM 2025"]
[Site "Norrköping, Sweden"]
[Date "2025.09.28"]
[Round "7.6"]
[White "Religa, Marek"]
[Black "Nilsson, Oliver"]
[Result "1-0"]
[TimeControl "25 min + 10 sec/move"]
[WhiteElo "2207"]
[BlackElo "2078"]

1. e4 {[%clk 00:25:13]} {[%emt 00:00:07]} c5 {[%clk 00:24:55]} {[%emt
00:00:26]} 2. Nf3 {[%clk 00:25:17]} {[%emt 00:00:06]} e6 {[%clk 00:24:47]}
{[%emt 00:00:18]} 3. d3 {[%clk 00:25:25]} {[%emt 00:00:02]} Nc6 {[%clk
00:24:49]} {[%emt 00:00:07]} 4. Nbd2 {[%clk 00:25:32]} {[%emt 00:00:04]} d6
{[%clk 00:24:50]} {[%emt 00:00:09]} 5. g3 {[%clk 00:25:37]} {[%emt 00:00:06]}
Nf6 {[%clk 00:24:55]} {[%emt 00:00:04]} 6. Bg2 {[%clk 00:25:46]} {[%emt
00:00:01]} Be7 {[%clk 00:24:59]} {[%emt 00:00:06]} 7. O-O {[%clk 00:25:54]}
{[%emt 00:00:02]} O-O {[%clk 00:25:03]} {[%emt 00:00:05]} 8. Re1 {[%clk
00:26:03]} Qc7 {[%clk 00:25:07]} {[%emt 00:00:09]} 9. c3 {[%clk 00:26:11]} Bd7
{[%clk 00:25:12]} {[%emt 00:00:07]} 10. Nf1 {[%clk 00:26:15]} Rac8 {[%clk
00:22:49]} {[%emt 00:02:38]} 11. Ne3 {[%clk 00:26:01]} b5 {[%clk 00:22:45]}
{[%emt 00:00:38]} 12. g4 {[%clk 00:25:18]} {[%emt 00:00:54]} Ne5 {[%clk
00:21:49]} {[%emt 00:01:05]} 13. g5 {[%clk 00:23:36]} {[%emt 00:01:52]} Nfg4
{[%clk 00:21:35]} {[%emt 00:00:25]} 14. Nxe5 {[%clk 00:22:29]} Nxe3 {[%clk
00:20:17]} {[%emt 00:02:45]} 15. Rxe3 {[%clk 00:22:28]} dxe5 {[%clk 00:20:22]}
{[%emt 00:00:16]} 16. Qh5 {[%clk 00:22:06]} g6 {[%clk 00:19:13]} {[%emt
00:01:51]} 17. Qh4 {[%clk 00:20:33]} f6 {[%clk 00:19:14]} {[%emt 00:01:50]} 18.
Rh3 {[%emt 00:00:16]} Rf7 {[%clk 00:19:21]} 19. f4 {[%clk 00:20:33]} {[%emt
00:00:09]} fxg5 {[%clk 00:19:11]} {[%emt 00:00:20]} 20. fxg5 {[%clk 00:20:30]}
Rcf8 {[%clk 00:19:12]} {[%emt 00:00:21]} 21. Be3 {[%clk 00:20:39]} b4 {[%clk
00:18:31]} {[%emt 00:00:53]} 22. c4 {[%clk 00:20:39]} Qd6 {[%clk 00:18:24]}
{[%emt 00:00:26]} 23. Rd1 {[%clk 00:20:11]} Qa6 {[%clk 00:18:27]} {[%emt
00:00:46]} 24. Ra1 {[%clk 00:19:47]} Qd6 {[%clk 00:18:33]} {[%emt 00:00:37]} 25.
Rf1 {[%clk 00:18:34]} Rxf1+ {[%clk 00:15:12]} {[%emt 00:04:55]} 26. Bxf1 {[%clk
00:18:42]} Rxf1+ {[%clk 00:15:16]} {[%emt 00:00:07]} 27. Kxf1 Qxd3+ {[%clk
00:15:18]} 28. Kf2 {[%clk 00:14:59]} {[%emt 00:04:00]} h5 {[%clk 00:15:18]}
{[%emt 00:00:11]} 29. Qg3 {[%clk 00:13:02]} {[%emt 00:02:07]} Qxe4 {[%clk
00:15:02]} {[%emt 00:00:26]} 30. Rh4 {[%clk 00:12:41]} {[%emt 00:00:31]} Qc2+
{[%clk 00:14:44]} {[%emt 00:00:28]} 31. Ke1 {[%clk 00:12:15]} {[%emt 00:00:36]}
Qb1+ {[%clk 00:14:47]} {[%emt 00:00:07]} 32. Ke2 {[%clk 00:11:53]} {[%emt
00:00:32]} Qxb2+ {[%clk 00:14:02]} {[%emt 00:00:56]} 33. Bd2 {[%clk 00:12:02]}
{[%emt 00:00:01]} a5 {[%clk 00:09:23]} {[%emt 00:04:49]} 34. Re4 {[%clk
00:09:36]} {[%emt 00:02:35]} Qc2 {[%clk 00:07:47]} {[%emt 00:01:46]} 35. Qd3
{[%clk 00:07:59]} {[%emt 00:01:47]} Qxd3+ {[%clk 00:07:44]} {[%emt 00:00:13]}
36. Kxd3 {[%clk 00:08:09]} Bd6 {[%clk 00:07:40]} {[%emt 00:00:14]} 37. Re1
{[%clk 00:07:18]} {[%emt 00:01:00]} Bc6 {[%clk 00:07:44]} {[%emt 00:00:06]} 38.
h4 {[%clk 00:07:16]} {[%emt 00:00:12]} e4+ {[%clk 00:07:41]} {[%emt 00:00:13]}
39. Kc2 {[%clk 00:06:49]} {[%emt 00:00:37]} Be5 {[%clk 00:07:29]} {[%emt
00:00:22]} 40. Be3 {[%clk 00:05:34]} {[%emt 00:01:26]} Bd4 {[%clk 00:07:32]}
{[%emt 00:00:07]} 41. Bxd4 {[%clk 00:04:44]} {[%emt 00:01:00]} cxd4 {[%clk
00:07:41]} 42. Rf1 {[%clk 00:04:53]} Kg7 {[%clk 00:06:36]} {[%emt 00:01:15]} 43.
Rf6 {[%clk 00:05:02]} {[%emt 00:00:02]} Bd7 {[%clk 00:06:38]} {[%emt 00:00:08]}
44. c5 {[%clk 00:05:11]} e3 {[%clk 00:06:32]} 45. c6 {[%clk 00:03:32]} {[%emt
00:02:04]} Bxc6 {[%clk 00:06:35]} 46. Rxe6 {[%clk 00:03:41]} {[%emt 00:00:09]}
Bb5 {[%clk 00:05:44]} 47. Kd1 {[%clk 00:03:14]} {[%emt 00:01:37]} a4 {[%clk
00:05:01]} 48. Rb6 {[%clk 00:02:47]} {[%emt 00:01:30]} Bf1 {[%clk 00:01:44]} 49.
Rxb4 {[%clk 00:02:17]} {[%emt 00:04:07]} d3 {[%clk 00:01:37]} {[%emt 00:00:17]}
50. Re4 {[%clk 00:02:19]} {[%emt 00:00:09]} e2+ {[%clk 00:00:57]} {[%emt
00:00:49]} 51. Kd2 {[%clk 00:02:22]} {[%emt 00:00:06]} Kf7 {[%clk 00:00:42]}
{[%emt 00:00:26]} 52. Rxa4 {[%clk 00:02:19]} {[%emt 00:00:12]} Ke6 {[%clk
00:00:44]} {[%emt 00:00:08]} 53. Rb4 {[%clk 00:01:17]} {[%emt 00:01:13]} Kf5
{[%clk 00:00:41]} {[%emt 00:00:13]} 54. a4 {[%clk 00:01:15]} {[%emt 00:00:12]}
Bg2 {[%clk 00:00:49]} {[%emt 00:00:02]} 55. a5 {[%clk 00:01:12]} {[%emt
00:00:13]} Ke5 {[%clk 00:00:20]} {[%emt 00:00:39]} 56. a6 {[%clk 00:01:10]}
{[%emt 00:00:12]} Kd6 {[%clk 00:00:14]} {[%emt 00:00:16]} 57. Rd4+ {[%clk
00:00:59]} {[%emt 00:00:20]} Kc5 {[%clk 00:00:23]} {[%emt 00:00:02]} 58. Rxd3
{[%clk 00:00:57]} {[%emt 00:00:11]} Kb6 {[%clk 00:00:27]} {[%emt 00:00:06]} 59.
Rd6+ {[%clk 00:01:00]} {[%emt 00:00:07]} Ka7 {[%clk 00:00:36]} {[%emt
00:00:01]} 60. Rxg6 {[%clk 00:00:57]} {[%emt 00:00:12]} 1-0

[Event "Snabbschacks-SM 2025"]
[Site "Norrköping, Sweden"]
[Date "2025.09.28"]
[Round "9.2"]
[White "Smith, Axel"]
[Black "Grahn, Vidar"]
[Result "1/2-1/2"]
[TimeControl "25 min + 10 sec/move"]
[WhiteTitle "GM"]
[BlackTitle "FM"]
[WhiteElo "2431"]
[BlackElo "2236"]

1. c4 {[%clk 00:25:17]} {[%emt 00:00:02]} c6 {[%clk 00:25:19]} {[%emt
00:00:01]} 2. e4 {[%clk 00:25:15]} {[%emt 00:00:12]} d5 {[%clk 00:23:42]}
{[%emt 00:01:47]} 3. exd5 {[%clk 00:25:23]} cxd5 {[%clk 00:23:51]} 4. d4 {[%clk
00:25:31]} {[%emt 00:00:02]} Nf6 {[%clk 00:23:51]} {[%emt 00:00:10]} 5. Nc3
{[%clk 00:25:38]} {[%emt 00:00:04]} g6 {[%clk 00:23:32]} {[%emt 00:00:28]} 6.
Qb3 {[%clk 00:24:57]} {[%emt 00:00:51]} Bg7 {[%clk 00:23:01]} {[%emt 00:00:42]}
7. cxd5 {[%clk 00:25:02]} {[%emt 00:00:05]} O-O {[%clk 00:23:00]} {[%emt
00:00:10]} 8. Be2 {[%clk 00:25:07]} {[%emt 00:00:05]} Ne8 {[%clk 00:16:04]}
{[%emt 00:07:06]} 9. Nf3 {[%clk 00:23:13]} {[%emt 00:02:03]} b6 {[%clk
00:15:31]} {[%emt 00:00:44]} 10. Ne5 {[%clk 00:21:17]} {[%emt 00:02:06]} Nd6
{[%clk 00:15:11]} {[%emt 00:00:31]} 11. Be3 {[%clk 00:17:16]} {[%emt 00:04:10]}
Nf5 {[%clk 00:13:47]} {[%emt 00:01:34]} 12. O-O-O {[%clk 00:15:06]} {[%emt
00:02:21]} Nxe3 {[%clk 00:11:54]} {[%emt 00:02:03]} 13. fxe3 {[%clk 00:15:15]}
{[%emt 00:00:01]} Bxe5 {[%clk 00:11:55]} {[%emt 00:00:09]} 14. dxe5 {[%clk
00:15:24]} Nd7 {[%clk 00:12:02]} {[%emt 00:00:02]} 15. e6 {[%clk 00:14:23]}
{[%emt 00:01:11]} fxe6 {[%clk 00:10:48]} {[%emt 00:01:25]} 16. dxe6 {[%clk
00:14:32]} Nc5 {[%clk 00:10:57]} {[%emt 00:00:01]} 17. Qc4 {[%clk 00:11:27]}
{[%emt 00:03:15]} Qc7 {[%clk 00:09:56]} {[%emt 00:01:10]} 18. Nd5 {[%clk
00:10:21]} {[%emt 00:01:17]} Qb7 {[%clk 00:08:18]} {[%emt 00:01:47]} 19. Qh4
{[%clk 00:06:25]} {[%emt 00:04:06]} Bxe6 {[%clk 00:04:59]} {[%emt 00:03:29]} 20.
Nxe7+ {[%clk 00:06:34]} {[%emt 00:00:01]} Kg7 {[%clk 00:02:59]} {[%emt
00:02:11]} 21. Rhf1 {[%clk 00:03:05]} {[%emt 00:03:38]} Bxa2 {[%clk 00:02:07]}
{[%emt 00:01:02]} 22. Qd4+ {[%clk 00:01:47]} {[%emt 00:01:28]} Kh6 {[%clk
00:02:14]} {[%emt 00:00:03]} 23. Qh4+ {[%clk 00:01:30]} {[%emt 00:00:27]} Kg7
{[%clk 00:02:22]} {[%emt 00:00:01]} 24. Qd4+ {[%clk 00:01:39]} {[%emt
00:00:02]} Kh6 {[%clk 00:02:31]} {[%emt 00:00:01]} 25. Ng8+ {[%clk 00:00:46]}
{[%emt 00:01:02]} Bxg8 {[%clk 00:02:14]} {[%emt 00:00:26]} 26. Qh4+ {[%clk
00:00:53]} {[%emt 00:00:03]} Kg7 {[%clk 00:02:22]} {[%emt 00:00:02]} 27. Qd4+
{[%clk 00:01:00]} {[%emt 00:00:03]} Kh6 {[%clk 00:02:28]} {[%emt 00:00:05]} 28.
Qh4+ {[%clk 00:01:03]} {[%emt 00:00:06]} Kg7 {[%clk 00:02:36]} {[%emt
00:00:02]} 29. Qd4+ {[%clk 00:01:08]} {[%emt 00:00:05]} Kh6 {[%clk 00:02:45]}
{[%emt 00:00:01]} 1/2-1/2

[ePGN "0.1;DGT LiveChess/2.2.7"]